bitfinex-derivatives/quotes_BTCF0:USTF0_20220103
["timestamp","ask_amount","ask_price","bid_price","bid_amount"]
[1641225162817,0.91816294,46718.0,46717.0,0.02]
[1641225163019,1.07116294,46718.0,46717.0,0.02]
[1641225164319,0.25748462,46718.0,46717.0,0.02]
[1641225164523,0.10448462,46718.0,46717.0,0.02]
[1641225164919,0.10548462,46718.0,46717.0,0.02]
[1641225165120,0.25748462,46718.0,46717.0,0.02]
[1641225166119,0.25848462,46718.0,46717.0,0.02]
[1641225166520,0.27989544,46718.0,46717.0,0.02]
[1641225166720,0.27889544,46718.0,46717.0,0.02]
[1641225167122,0.39289544,46718.0,46717.0,0.02]
[1641225167322,0.24089544,46718.0,46717.0,0.02]
[1641225167921,0.24189544,46718.0,46717.0,0.02]
[1641225168321,0.24089544,46718.0,46717.0,0.02]
[1641225168523,0.12689544,46718.0,46717.0,0.02]
[1641225169124,0.24189544,46718.0,46717.0,0.02]
[1641225169325,0.24289544,46718.0,46717.0,0.02]
[1641225169527,0.24189544,46718.0,46717.0,0.02]
[1641225169728,0.24289544,46718.0,46717.0,0.02]
[1641225170629,0.18575544,46718.0,46717.0,0.0001]
[1641225170827,0.18675544,46718.0,46717.0,0.0001]
[1641225171231,0.30275544,46718.0,46717.0,0.0001]
[1641225171429,1.128718,46717.0,46696.0,1.45114082]
[1641225171633,0.201,46697.0,46696.0,1.45114082]
[1641225171830,0.08093,46697.0,46696.0,1.37314082]
[1641225172027,0.07119,46697.0,46696.0,1.37314082]
[1641225172230,0.07119,46697.0,46693.0,1.37314082]
[1641225172428,0.14033567,46696.0,46694.0,0.009777]
[1641225172634,0.001,46695.0,46693.0,1.37314082]
[1641225172829,0.02,46695.0,46693.0,1.37314082]
[1641225173030,0.001,46694.0,46693.0,1.37314082]
[1641225173229,0.02,46694.0,46693.0,1.37314082]
[1641225173630,0.14779471,46694.0,46693.0,1.37314082]
[1641225173832,0.12779471,46694.0,46693.0,1.37314082]
[1641225174031,0.12779471,46694.0,46686.0,1.59254565]
[1641225174332,0.05892,46694.0,46687.0,0.009777]
[1641225174533,0.14033567,46688.0,46687.0,0.01209765]
[1641225174835,0.14033567,46688.0,46687.0,0.03119428]
[1641225175031,0.14033567,46688.0,46687.0,0.04329222]
[1641225175233,0.23733567,46688.0,46687.0,0.04329222]
[1641225176333,0.23733567,46688.0,46687.0,0.03119428]
[1641225176534,0.14133567,46688.0,46687.0,0.19119428]
[1641225177135,0.14133567,46688.0,46687.0,0.03119428]
[1641225177438,0.14033567,46688.0,46687.0,0.03119428]
[1641225177634,0.16033567,46688.0,46683.0,0.02141882]
[1641225177835,0.14033567,46688.0,46683.0,0.02141882]
[1641225178034,0.02,46686.0,46681.0,0.14248567]
[1641225178237,0.14033567,46688.0,46681.0,0.15226267]
[1641225178435,0.14033567,46688.0,46686.0,0.16]
[1641225178635,0.14033567,46688.0,46687.0,0.009777]
[1641225178833,0.14133567,46688.0,46687.0,0.0311943]
[1641225179034,0.14033567,46688.0,46687.0,0.0311943]
[1641225179434,0.14033567,46688.0,46687.0,0.0214173]
[1641225179633,0.14033567,46688.0,46681.0,0.15226267]
[1641225179634,0.14033567,46688.0,46682.0,0.02141931]
[1641225179835,0.001,46683.0,46682.0,0.02141931]
[1641225180139,0.08129,46683.0,46682.0,0.02141931]
[1641225180334,0.08129,46683.0,46682.0,0.01209898]
[1641225180734,0.08129,46683.0,46682.0,0.03351768]
[1641225180934,0.08129,46683.0,46682.0,0.2842725]
[1641225181135,0.18329,46683.0,46682.0,0.2842725]
[1641225181336,0.18329,46683.0,46682.0,0.1242725]
[1641225181635,0.18229,46683.0,46682.0,0.2628538]
[1641225182034,0.99060248,46683.0,46682.0,0.2628538]
[1641225182234,0.99060248,46683.0,46682.0,0.25075482]
[1641225182534,0.08029,46683.0,46682.0,0.25075482]
[1641225182736,1.25437185,46683.0,46682.0,0.09075482]
[1641225182935,1.25537185,46683.0,46682.0,0.09075482]
[1641225183136,1.36937185,46683.0,46682.0,0.09075482]
[1641225183334,1.37916585,46683.0,46682.0,0.09075482]
[1641225184235,1.36937185,46683.0,46682.0,0.09075482]
[1641225184435,1.39470752,46683.0,46682.0,0.09075482]
[1641225184635,0.32433744,46683.0,46681.0,0.00215]
[1641225185135,0.44033744,46683.0,46681.0,0.00215]
[1641225185535,0.001,46682.0,46681.0,0.00215]
[1641225185736,0.02242865,46682.0,46681.0,0.00215]
[1641225185938,0.02142865,46682.0,46681.0,0.00215]
[1641225186137,0.001,46682.0,46681.0,0.00215]
[1641225186337,0.25633567,46683.0,46681.0,0.00215]
[1641225186537,0.14033567,46683.0,46681.0,0.00215]
[1641225186740,0.14033567,46683.0,46682.0,0.009777]
[1641225186937,0.14033567,46683.0,46681.0,0.00215]
[1641225187139,0.021,46682.0,46681.0,0.00215]
[1641225187338,0.02,46682.0,46681.0,0.00215]
[1641225187539,0.021,46682.0,46681.0,0.00215]
[1641225187740,0.021,46682.0,46681.0,0.16215]
[1641225187942,0.02,46682.0,46681.0,0.16215]
[1641225188141,0.27133567,46683.0,46681.0,0.00215]
[1641225188540,0.16033567,46683.0,46681.0,0.00215]
[1641225189141,0.27433567,46683.0,46681.0,0.00215]
[1641225189344,0.001,46682.0,46681.0,0.60723266]
[1641225189951,0.14033567,46688.0,46681.0,0.76723266]
[1641225190152,0.83403757,46696.0,46687.0,0.16]
[1641225190354,0.83403757,46696.0,46695.0,0.02141305]
[1641225190553,0.83403757,46696.0,46695.0,0.11671305]
[1641225191051,0.83403757,46696.0,46695.0,0.27671305]
[1641225191251,0.83403757,46696.0,46695.0,0.39471305]
[1641225191453,0.83403757,46696.0,46695.0,0.23471305]
[1641225192056,0.18,46696.0,46695.0,0.2133]
[1641225192255,0.18,46696.0,46695.0,0.118]
[1641225192256,0.190794,46696.0,46695.0,0.118]
[1641225192457,0.33012967,46696.0,46688.0,0.69580978]
[1641225192755,0.06249255,46695.0,46688.0,0.69580978]
[1641225192954,0.02,46689.0,46688.0,0.60508266]
[1641225193159,0.02,46689.0,46688.0,0.71908266]
[1641225193356,0.021,46689.0,46688.0,0.114]
[1641225193957,0.02,46689.0,46688.0,0.114]
[1641225194255,0.021,46689.0,46688.0,0.114]
[1641225194457,0.16133567,46689.0,46687.0,0.6264998]
[1641225194658,0.001,46688.0,46687.0,0.02141714]
[1641225195058,0.001,46688.0,46683.0,0.60508266]
[1641225195259,0.111,46688.0,46687.0,0.112]
[1641225195458,0.132,46688.0,46687.0,0.112]
[1641225195861,0.131,46688.0,46687.0,0.112]
[1641225196061,0.112,46688.0,46687.0,0.112]
[1641225196263,0.111,46688.0,46687.0,0.112]
[1641225196663,0.132,46688.0,46687.0,0.112]
[1641225197163,0.001,46688.0,46687.0,0.118]
[1641225197362,0.021,46688.0,46687.0,0.118]
[1641225197762,0.02,46688.0,46687.0,0.118]
[1641225197963,0.021,46688.0,46687.0,0.118]
[1641225198565,0.021,46688.0,46681.0,0.60723266]
[1641225198764,0.14033567,46689.0,46681.0,0.60723266]
[1641225198765,0.001,46682.0,46681.0,0.60723266]
[1641225198966,0.09514,46682.0,46681.0,0.60723266]
[1641225199166,0.09514,46682.0,46681.0,0.68723266]
[1641225199569,0.11614,46682.0,46681.0,0.08215]
[1641225200570,0.11614,46682.0,46681.0,0.00215]
[1641225201172,0.09514,46682.0,46681.0,0.08115]
[1641225201372,0.09614,46682.0,46681.0,0.08115]
[1641225201572,0.001,46682.0,46681.0,0.24115]
[1641225201975,0.16033567,46689.0,46681.0,0.24115]
[1641225202173,0.02,46685.0,46681.0,0.1589]
[1641225202573,0.02,46685.0,46681.0,0.0799]
[1641225202774,0.14033567,46689.0,46681.0,0.0799]
[1641225202974,0.14033567,46689.0,46685.0,0.16]
[1641225203176,0.02,46686.0,46681.0,0.08215]
[1641225203375,0.02,46686.0,46684.0,0.12]
[1641225203574,0.02,46685.0,46683.0,0.049777]
[1641225203776,0.14033567,46689.0,46683.0,0.009777]
[1641225204175,0.02,46684.0,46683.0,0.169777]
[1641225204375,0.02,46684.0,46681.0,0.00215]
[1641225204975,0.02,46684.0,46682.0,0.16]
[1641225205176,0.02,46684.0,46681.0,0.08315]
[1641225205375,0.02,46682.0,46681.0,0.08315]
[1641225205576,0.14033567,46689.0,46681.0,0.24315]
[1641225205774,0.14033567,46689.0,46681.0,0.30315]
[1641225206177,0.02,46687.0,46681.0,0.30315]
[1641225206375,0.02,46683.0,46681.0,0.14315]
[1641225206577,0.02,46683.0,46681.0,0.06215]
[1641225206775,0.02,46683.0,46681.0,0.00215]
[1641225206977,0.02,46683.0,46682.0,0.16]
[1641225207376,0.02,46683.0,46681.0,0.08415]
[1641225207776,0.02,46683.0,46682.0,0.16]
[1641225207978,0.14033567,46689.0,46681.0,0.08415]
[1641225208176,0.14033567,46689.0,46681.0,0.35413128]
[1641225208581,0.14033567,46689.0,46686.0,0.001]
[1641225208779,0.14033567,46689.0,46688.0,0.001]
[1641225209178,0.14033567,46689.0,46688.0,0.27313]
[1641225209380,0.94449565,46701.0,46688.0,0.30432234]
[1641225209579,0.001,46689.0,46688.0,0.30332234]
[1641225209779,0.94449565,46701.0,46688.0,0.49580508]
[1641225209979,0.94449565,46701.0,46697.0,0.18]
[1641225210181,1.95384626,46703.0,46700.0,0.20141105]
[1641225210384,0.80415998,46703.0,46701.0,0.18]
[1641225210581,0.80415998,46703.0,46701.0,0.12]
[1641225210780,0.80415998,46703.0,46700.0,0.40870672]
[1641225211283,0.80415998,46703.0,46701.0,0.079]
[1641225211681,2.10153567,46710.0,46701.0,0.079]
[1641225211881,0.14033567,46710.0,46701.0,0.079]
[1641225212580,0.14033567,46710.0,46700.0,0.40870672]
[1641225212781,0.14033567,46710.0,46700.0,0.22870672]
[1641225212982,0.14033567,46710.0,46700.0,0.40870672]
[1641225213179,0.14033567,46710.0,46700.0,0.48970672]
[1641225213981,0.32033567,46715.0,46704.0,0.12]
[1641225214182,0.14033567,46715.0,46707.0,0.0214078]
[1641225214384,0.81186464,46715.0,46713.0,0.18]
[1641225214584,0.81186464,46715.0,46713.0,0.2493]
[1641225214984,0.90390101,46720.0,46713.0,0.2493]
[1641225215184,0.90390101,46720.0,46716.0,0.18]
[1641225215985,0.90390101,46720.0,46716.0,0.12]
[1641225216184,0.90390101,46720.0,46715.0,0.069777]
[1641225216585,0.009794,46727.0,46718.0,0.14033567]
[1641225216785,0.817937,46720.0,46718.0,0.14033567]
[1641225216986,0.817937,46720.0,46718.0,0.19890567]
[1641225217185,0.817937,46720.0,46718.0,0.27890567]
[1641225217385,1.62122456,46729.0,46719.0,0.320322]
[1641225217584,0.14033567,46731.0,46719.0,0.320322]
[1641225217786,0.14033567,46731.0,46719.0,0.330099]
[1641225217983,0.14033567,46731.0,46721.0,0.02140156]
[1641225218584,0.14033567,46731.0,46723.0,0.14033567]
[1641225218784,0.14033567,46731.0,46724.0,0.009777]
[1641225218986,0.14033567,46731.0,46727.0,0.02139871]
[1641225219786,0.14033567,46731.0,46730.0,0.02139632]
[1641225219986,0.18,46731.0,46724.0,0.009777]
[1641225220188,0.18,46726.0,46724.0,0.009777]
[1641225220386,0.07877,46733.0,46724.0,0.009777]
[1641225220587,0.07877,46733.0,46728.0,0.14033567]
[1641225220793,0.18,46729.0,46728.0,0.14033567]
[1641225221188,0.18,46729.0,46728.0,0.21533567]
[1641225221389,0.14033567,46734.0,46728.0,0.21533567]
[1641225221590,0.12,46729.0,46728.0,0.21533567]
[1641225221789,0.18,46729.0,46728.0,0.21533567]
[1641225222790,0.05604991,46732.0,46728.0,0.14033567]
[1641225223188,0.18,46729.0,46728.0,0.21633567]
[1641225223790,0.05604991,46732.0,46728.0,0.21633567]
[1641225223990,0.18,46729.0,46728.0,0.21633567]
[1641225224193,0.181,46729.0,46728.0,0.21633567]
[1641225224594,0.001,46729.0,46728.0,0.14033567]
[1641225225392,0.001,46729.0,46728.0,0.21933567]
[1641225225594,0.001,46729.0,46728.0,0.47730835]
[1641225225993,0.001,46729.0,46728.0,0.79924135]
[1641225226394,0.14033567,46738.0,46729.0,0.009777]
[1641225226593,0.14033567,46738.0,46732.0,0.02139656]
[1641225226795,0.82666168,46739.0,46732.0,0.02139656]
[1641225227193,0.82666168,46739.0,46737.0,0.001]
[1641225227394,0.82666168,46739.0,46732.0,0.082]
[1641225227594,0.18,46738.0,46732.0,0.082]
[1641225228194,0.82666168,46739.0,46732.0,0.082]
[1641225228394,0.18,46738.0,46732.0,0.082]
[1641225228595,0.18,46738.0,46733.0,0.14033567]
[1641225228793,0.18,46734.0,46733.0,0.14033567]
[1641225228994,0.07591,46734.0,46733.0,0.14033567]
[1641225229293,0.13391,46734.0,46733.0,0.19933567]
[1641225230097,0.13391,46734.0,46726.0,0.60460448]
[1641225230294,0.18,46728.0,46726.0,0.60460448]
[1641225230500,0.18,46728.0,46723.0,0.14033567]
[1641225230695,0.18,46728.0,46721.0,0.60460448]
[1641225231302,0.18,46728.0,46721.0,0.67160448]
[1641225231502,0.18,46722.0,46719.0,0.60460448]
[1641225231702,0.189794,46726.0,46719.0,0.60460448]
[1641225232103,0.18,46722.0,46719.0,0.60460448]
[1641225232702,0.32033567,46722.0,46719.0,0.60460448]
[1641225232903,0.14033567,46722.0,46714.0,0.74494015]
[1641225233103,0.32033567,46722.0,46714.0,0.74494015]
[1641225233303,0.20033567,46722.0,46719.0,0.062]
[1641225233504,0.18,46720.0,46714.0,0.74494015]
[1641225233703,0.18,46715.0,46714.0,0.74494015]
[1641225233905,0.06972,46715.0,46714.0,0.74494015]
[1641225234504,0.06972,46715.0,46714.0,0.74594015]
[1641225234708,0.14033567,46722.0,46715.0,0.35840695]
[1641225235107,0.14033567,46722.0,46714.0,0.46101667]
[1641225235306,0.19033567,46722.0,46715.0,0.062]
[1641225235907,0.19033567,46722.0,46716.0,0.321802]
[1641225236106,0.19033567,46722.0,46715.0,0.062]
[1641225236707,0.14033567,46722.0,46714.0,0.14033567]
[1641225237422,0.14033567,46722.0,46715.0,0.92533848]
[1641225237819,0.18,46718.0,46715.0,0.60460448]
[1641225238119,0.14033567,46722.0,46715.0,0.60460448]
[1641225238421,0.14033567,46722.0,46714.0,0.20633567]
[1641225238619,0.14033567,46722.0,46714.0,0.14033567]
[1641225239019,0.18,46715.0,46714.0,0.14033567]
[1641225239221,0.26383,46715.0,46714.0,0.062]
[1641225239422,0.26383,46715.0,46714.0,0.06]
[1641225239620,0.08383,46715.0,46693.0,0.36379166]
[1641225239820,0.009794,46714.0,46693.0,0.36379166]
[1641225240324,0.009794,46714.0,46698.0,0.24611681]
[1641225240520,0.18,46705.0,46698.0,0.24611681]
[1641225241025,0.14033567,46712.0,46698.0,0.24611681]
[1641225241223,0.058,46705.0,46698.0,0.24611681]
[1641225241422,0.058,46705.0,46704.0,0.02140907]
[1641225242521,0.058,46705.0,46701.0,0.02141029]
[1641225242724,0.18,46705.0,46698.0,0.24611681]
[1641225243221,0.23,46705.0,46698.0,0.24611681]
[1641225244323,0.05,46705.0,46698.0,0.24611681]
[1641225244524,0.23,46705.0,46698.0,0.24611681]
[1641225244723,0.18,46705.0,46698.0,0.24611681]
[1641225245325,0.04,46705.0,46698.0,0.24611681]
[1641225245527,0.22,46705.0,46698.0,0.24611681]
[1641225245725,0.22,46705.0,46699.0,0.60460448]
[1641225246226,0.22,46705.0,46704.0,0.02140907]
[1641225246425,0.14033567,46712.0,46704.0,0.28337907]
[1641225246626,0.95285491,46720.0,46711.0,0.20140482]
[1641225246826,0.88785491,46720.0,46719.0,0.14033567]
[1641225247027,0.88785491,46720.0,46719.0,0.21215567]
[1641225247429,0.88785491,46720.0,46719.0,0.27815567]
[1641225247626,0.88785491,46720.0,46719.0,0.60013367]
[1641225247829,0.009794,46729.0,46719.0,0.60013367]
[1641225248527,0.009794,46729.0,46719.0,0.53413367]
[1641225248929,0.009794,46729.0,46720.0,0.26965648]
[1641225249131,0.12,46722.0,46720.0,0.26965648]
[1641225249327,0.09006,46722.0,46719.0,0.20333567]
[1641225250628,0.20141328,46720.0,46712.0,1.11207681]
[1641225250827,0.14033567,46713.0,46710.0,1.21016532]
[1641225251028,0.14033567,46713.0,46711.0,0.60449258]
[1641225251427,0.20033567,46713.0,46711.0,0.60449258]
[1641225251828,0.18,46712.0,46711.0,0.60449258]
[1641225252027,0.20033567,46713.0,46711.0,0.60449258]
[1641225252533,0.20033567,46713.0,46710.0,0.061]
[1641225252729,0.14033567,46713.0,46705.0,0.24376272]
[1641225252931,0.06,46708.0,46705.0,0.24376272]
[1641225253128,0.14033567,46713.0,46707.0,0.001]
[1641225253330,0.19433567,46713.0,46705.0,0.30676272]
[1641225253529,0.18,46708.0,46706.0,0.320036]
[1641225253729,0.19433567,46713.0,46707.0,0.001]
[1641225254029,0.19433567,46713.0,46708.0,0.321666]
[1641225254234,0.18,46709.0,46708.0,0.321666]
[1641225254432,0.19433567,46713.0,46705.0,0.30676272]
[1641225254631,0.14033567,46713.0,46705.0,0.24376272]
[1641225254833,0.32033567,46708.0,46705.0,0.24376272]
[1641225255133,0.14033567,46708.0,46707.0,0.001]
[1641225255335,0.19433567,46708.0,46707.0,0.001]
[1641225255636,0.14033567,46713.0,46709.0,0.00393454]
[1641225255833,0.14033567,46713.0,46712.0,0.18]
[1641225256333,0.14033567,46713.0,46712.0,0.319664]
[1641225256734,0.14033567,46713.0,46706.0,1.16740072]
[1641225256936,0.22616567,46713.0,46707.0,0.60449258]
[1641225257536,0.22616567,46713.0,46708.0,0.321427]
[1641225258338,0.18,46709.0,46707.0,0.321364]
[1641225258536,0.18,46708.0,46707.0,0.321364]
[1641225258737,0.24757895,46713.0,46707.0,0.321364]
[1641225259338,0.25557895,46713.0,46707.0,0.383364]
[1641225260041,0.18,46709.0,46707.0,0.383364]
[1641225260238,0.25557895,46713.0,46707.0,0.383364]
[1641225260439,0.18,46709.0,46707.0,0.383364]
[1641225260644,0.24757895,46713.0,46707.0,0.321364]
[1641225260840,0.18,46709.0,46707.0,0.321364]
[1641225261040,0.18,46709.0,46705.0,0.60449258]
[1641225261347,0.201,46709.0,46707.0,0.28427961]
[1641225261740,0.021,46709.0,46708.0,0.316846]
[1641225261941,0.83065429,46709.0,46708.0,0.316846]
[1641225262139,1.01065429,46709.0,46708.0,0.316846]
[1641225262540,0.83065429,46709.0,46708.0,0.316846]
[1641225262741,0.80965429,46709.0,46708.0,0.316846]
[1641225262941,0.98965429,46709.0,46708.0,0.316846]
[1641225263145,0.80965429,46710.0,46707.0,0.23627961]
[1641225263342,0.191,46709.0,46708.0,0.048]
[1641225263643,0.011,46709.0,46708.0,0.048]
[1641225264042,0.82065429,46709.0,46708.0,0.049]
[1641225264342,1.00065429,46709.0,46708.0,0.049]
[1641225264541,0.82065429,46709.0,46708.0,0.368644]
[1641225264944,0.82065429,46709.0,46708.0,0.048]
[1641225265244,0.80965429,46709.0,46707.0,0.23627961]
[1641225265443,0.84565429,46709.0,46708.0,0.047]
[1641225266043,0.84565429,46709.0,46708.0,0.048]
[1641225266442,0.84565429,46709.0,46708.0,0.369392]
[1641225266643,0.80965429,46709.0,46708.0,0.001]
[1641225267044,0.80965429,46709.0,46707.0,0.23627961]
[1641225267444,0.84965429,46709.0,46708.0,0.048]
[1641225267645,0.84965429,46709.0,46708.0,0.370661]
[1641225268046,1.02965429,46709.0,46708.0,0.049]
[1641225268646,0.98965429,46709.0,46707.0,0.23627961]
[1641225268847,0.80965429,46709.0,46707.0,0.23627961]
[1641225269346,0.84865429,46709.0,46707.0,0.28427961]
[1641225269547,0.80965429,46708.0,46707.0,0.28427961]
[1641225269748,0.80965429,46708.0,46707.0,0.28527961]
[1641225270850,0.80965429,46708.0,46707.0,0.23727961]
[1641225271448,0.84965429,46708.0,46707.0,0.46627961]
[1641225271649,1.15664898,46710.0,46707.0,0.25240684]
[1641225271849,1.15664898,46710.0,46709.0,0.001]
[1641225272156,1.15664898,46710.0,46709.0,0.51581299]
[1641225272157,1.09964898,46710.0,46709.0,0.51581299]
[1641225272356,1.09964898,46710.0,46709.0,0.83645599]
[1641225272656,0.02141328,46713.0,46709.0,0.8475444]
[1641225272856,0.02141328,46713.0,46709.0,0.8465444]
[1641225273055,0.02141328,46713.0,46709.0,0.83445599]
[1641225273458,0.06141328,46713.0,46709.0,0.88245599]
[1641225274057,0.04,46713.0,46709.0,0.88245599]
[1641225274256,0.04,46713.0,46709.0,0.95467599]
[1641225274656,0.14033567,46718.0,46709.0,0.90667599]
[1641225275257,0.02141328,46713.0,46709.0,0.320643]
[1641225275456,0.02141328,46713.0,46709.0,0.049]
[1641225275656,0.18,46710.0,46709.0,0.049]
[1641225275857,0.14033567,46718.0,46709.0,0.229]
[1641225276060,0.14033567,46718.0,46713.0,0.18]
[1641225276358,0.14033567,46718.0,46717.0,0.001]
[1641225276656,0.14033567,46718.0,46717.0,0.008572]
[1641225277056,0.34174895,46718.0,46707.0,0.38930096]
[1641225277256,0.12,46709.0,46707.0,0.38930096]
[1641225277558,0.18,46709.0,46704.0,1.40361759]
[1641225277756,0.24920895,46718.0,46708.0,0.77956931]
[1641225278371,0.06,46710.0,46708.0,0.77956931]
[1641225278574,0.06,46710.0,46709.0,0.001]
[1641225278772,0.16174895,46718.0,46709.0,0.001]
[1641225278973,0.14033567,46718.0,46713.0,0.42814439]
[1641225279173,0.14033567,46718.0,46713.0,0.54814439]
[1641225279372,0.14033567,46718.0,46714.0,0.318416]
[1641225280773,1.1570295,46716.0,46715.0,0.18]
[1641225280972,1.1570295,46716.0,46714.0,0.318416]
[1641225281174,1.17844278,46716.0,46713.0,0.42814439]
[1641225281374,1.18944278,46716.0,46715.0,0.045]
[1641225281975,0.03241328,46716.0,46715.0,0.045]
[1641225282876,0.02141328,46716.0,46713.0,0.42814439]
[1641225283276,0.06,46714.0,46713.0,0.42814439]
[1641225283479,0.06,46714.0,46713.0,0.47514439]
[1641225283679,0.18,46714.0,46713.0,0.047]
[1641225283876,0.06041328,46716.0,46713.0,0.047]
[1641225284077,0.06,46714.0,46713.0,0.047]
[1641225284481,0.06041328,46716.0,46713.0,0.047]
[1641225284678,0.02141328,46716.0,46707.0,0.31585528]
[1641225284878,0.15012967,46718.0,46707.0,0.31585528]
[1641225285479,0.15012967,46718.0,46708.0,0.322138]
[1641225286680,0.15012967,46718.0,46713.0,0.42813927]
[1641225286880,0.14033567,46718.0,46713.0,0.49710927]
[1641225287081,0.14033567,46718.0,46717.0,0.42810096]
[1641225287481,0.14033567,46718.0,46717.0,0.74365296]
[1641225287681,0.14033567,46718.0,46717.0,0.42810096]
[1641225289484,0.14033567,46718.0,46717.0,0.47810096]
[1641225289683,0.14033567,46718.0,46717.0,0.05]
[1641225290084,0.16174895,46718.0,46717.0,0.0001]
[1641225290283,0.17154295,46718.0,46717.0,0.0001]
[1641225291083,0.35154295,46718.0,46717.0,0.0001]
[1641225291286,0.35154295,46718.0,46706.0,0.60361759]
[1641225291488,0.27127295,46718.0,46706.0,0.60361759]
[1641225291786,0.27127295,46718.0,46698.0,0.65426656]
[1641225291787,0.18,46711.0,46702.0,0.75701136]
[1641225291985,0.27127295,46718.0,46702.0,0.75701136]
[1641225292386,0.27127295,46718.0,46705.0,0.321792]
[1641225292787,0.23227295,46718.0,46705.0,0.321792]
[1641225292988,0.18,46711.0,46705.0,0.321792]
[1641225293288,0.06,46711.0,46705.0,0.321792]
[1641225293488,0.14033567,46712.0,46705.0,0.360792]
[1641225293687,0.18,46711.0,46707.0,0.4282]
[1641225294294,0.14033567,46712.0,46707.0,0.4282]
[1641225294692,0.18,46711.0,46707.0,0.4282]
[1641225294889,0.14033567,46712.0,46707.0,0.4282]
[1641225295092,0.18,46711.0,46707.0,0.4282]
[1641225295491,0.18,46711.0,46707.0,0.4672]
[1641225295892,0.18,46708.0,46707.0,0.039]
[1641225296092,0.24976,46708.0,46707.0,0.039]
[1641225296493,0.06976,46708.0,46707.0,0.039]
[1641225296694,0.06976,46708.0,46702.0,0.14033567]
[1641225297093,0.14033567,46707.0,46701.0,0.60361759]
[1641225297492,0.14033567,46707.0,46703.0,0.63975379]
[1641225297692,0.14033567,46707.0,46703.0,0.31756579]
[1641225299495,0.14033567,46707.0,46703.0,0.35756579]
[1641225300798,0.14033567,46707.0,46703.0,0.31756579]
[1641225301197,0.14033567,46707.0,46699.0,0.60361759]
[1641225301401,0.20901567,46707.0,46703.0,0.041]
[1641225301598,0.009794,46706.0,46703.0,0.041]
[1641225301997,0.18,46704.0,46703.0,0.0001]
[1641225302196,0.18,46704.0,46696.0,0.84504438]
[1641225302197,0.296596,46704.0,46696.0,0.28321141]
[1641225302400,0.18,46697.0,46694.0,1.20720625]
[1641225302597,0.009794,46696.0,46695.0,0.8461269]
[1641225303196,0.15012967,46696.0,46695.0,0.8461269]
[1641225303397,0.33012967,46696.0,46695.0,0.8461269]
[1641225303597,0.36912967,46696.0,46695.0,0.8461269]
[1641225303796,0.39055469,46696.0,46693.0,1.20720625]
[1641225304399,0.39055469,46696.0,46682.0,0.14033567]
[1641225304596,0.18,46693.0,46682.0,0.14033567]
[1641225305097,0.14033567,46691.0,46683.0,0.01209409]
[1641225305897,1.15322895,46686.0,46683.0,0.01209409]
[1641225306698,0.14033567,46691.0,46683.0,0.01209409]
[1641225306900,0.14033567,46691.0,46681.0,0.00215]
[1641225307098,0.14033567,46686.0,46681.0,0.00215]
[1641225307500,0.14033567,46686.0,46682.0,0.01209422]
[1641225308602,0.189794,46685.0,46682.0,0.01209422]
[1641225308800,0.268104,46685.0,46682.0,0.01209422]
[1641225308999,0.088104,46685.0,46681.0,0.00215]
[1641225309202,0.22843967,46685.0,46681.0,0.00215]
[1641225309403,0.22843967,46685.0,46682.0,0.018]
[1641225309604,0.26743967,46685.0,46682.0,0.018]
[1641225310805,0.22843967,46685.0,46681.0,0.00215]
[1641225311605,0.26743967,46685.0,46681.0,0.00415]
[1641225312806,0.22843967,46685.0,46681.0,0.00215]
[1641225313309,0.42845074,46680.0,46667.0,0.02]
[1641225313609,0.009794,46679.0,46667.0,0.02]
[1641225313807,0.18,46674.0,46669.0,1.20969001]
[1641225314010,0.26428,46674.0,46669.0,1.20969001]
[1641225314209,0.26428,46674.0,46673.0,0.001]
[1641225314408,0.26528,46674.0,46669.0,1.20969001]
[1641225314613,0.18,46670.0,46669.0,1.20969001]
[1641225314811,0.20143605,46670.0,46669.0,1.21069001]
[1641225315008,0.20143605,46670.0,46662.0,1.451862]
[1641225315009,0.26790505,46670.0,46662.0,1.451862]
[1641225315210,0.3927,46663.0,46655.0,3.02299021]
[1641225315415,0.18,46656.0,46655.0,1.373862]
[1641225315611,0.20244328,46656.0,46655.0,1.355273]
[1641225315810,2.39285628,46656.0,46655.0,1.355273]
[1641225316010,1.252413,46656.0,46655.0,1.355273]
[1641225316313,2.370413,46656.0,46648.0,1.33378998]
[1641225316514,2.370413,46656.0,46648.0,1.32818998]
[1641225316515,0.18,46649.0,46648.0,1.32818998]
[1641225316711,2.99049,46649.0,46638.0,1.56591279]
[1641225316911,2.499,46639.0,46638.0,0.7484904]
[1641225317118,2.57734,46639.0,46634.0,0.28736714]
[1641225317312,1.119,46634.0,46628.0,1.47748275]
[1641225317513,1.119,46630.0,46628.0,1.44508275]
[1641225317711,0.857173,46633.0,46628.0,1.06998275]
[1641225317912,0.001,46629.0,46628.0,1.06568275]
[1641225318111,0.08104,46629.0,46628.0,1.06568275]
[1641225318314,0.08204,46629.0,46617.0,0.58084696]
[1641225318513,0.001,46618.0,46612.0,0.5]
[1641225318713,0.18,46623.0,46612.0,0.5]
[1641225318914,0.001,46617.0,46612.0,0.5]
[1641225319316,0.72671872,46617.0,46612.0,0.5]
[1641225319517,0.58471872,46617.0,46612.0,0.5]
[1641225319718,0.45900701,46617.0,46613.0,0.18]
[1641225319914,0.45900701,46617.0,46616.0,0.2]
[1641225320116,0.45900701,46617.0,46616.0,0.02]
[1641225320317,0.93681054,46638.0,46616.0,0.601]
[1641225320517,1.79130997,46638.0,46636.0,0.12]
[1641225320815,1.76986246,46638.0,46637.0,0.181]
[1641225321018,1.76986246,46638.0,46637.0,0.18]
[1641225321219,1.91019813,46638.0,46637.0,0.25390877]
[1641225321421,1.94719813,46638.0,46637.0,0.10990877]
[1641225321622,0.1987842,46638.0,46637.0,0.036]
[1641225321819,0.17733567,46638.0,46637.0,0.036]
[1641225322820,0.14033567,46638.0,46630.0,0.18]
[1641225323019,0.20192567,46638.0,46630.0,0.18]